Cogmind - Beta 10.2 @@@ ROGUE MODE // 2022.03.03 @ 14:12:43 Player: jk Result: Destroyed by G-34 Mercenary with Small Laser Performance ------------- Evolutions (0) 0 Regions Visited (1) 200 Robots Destroyed (8) 40 Value Destroyed (211) 211 Prototype IDs (0) 0 Alien Tech Used (0) 0 Bonus (0) 0 TOTAL SCORE: 451 Bonus ------- None Cogmind --------- Core Integrity 0/250 Matter 275/300 Energy 64/100 System Corruption 0% Temperature Cool (15) Movement Core (50) Location -10/Materials Parts ------- > --- POWER (1) -------- (None) > --- PROPULSION (2) --- (None) > --- UTILITY (2) ------ Heat Sink > --- WEAPON (2) ------- EM Pulse Gun > --- INVENTORY (4) ---- (None) Peak State ------------ > --- POWER ------------ Ion Engine > --- PROPULSION ------- Aluminum Leg Aluminum Leg > --- UTILITY ---------- (None) > --- WEAPON ----------- EM Pulse Gun Light Assault Rifle > --- INVENTORY -------- Wheel Wheel Wheel Light Assault Rifle [Rating: 5] Favorites ----------- Power Ion Engine Engine Ion Engine Propulsion Aluminum Leg Leg Aluminum Leg Wheel Wheel Flight Unit Flight Unit Utility Heat Sink Device Heat Sink Weapon EM Pulse Gun Energy Gun EM Pulse Gun Ballistic Gun Light Assault Rifle Build | -11 -10 ------- Run | Scr Mat Slots Evolved . | . . Power . | . . Propulsion . | . . Utility . | . . Weapon . | . . Parts Attached 15 | 5 10 Power 1 | 1 . Engine 1 | 1 . Core . | . . Reactor . | . . Propulsion 6 | 2 4 Treads . | . . Leg 3 | 2 1 Wheel 2 | . 2 Hover . | . . Flight 1 | . 1 Utility 1 | . 1 Device 1 | . 1 Storage . | . . Processor . | . . Hackware . | . . Protection . | . . Artifact . | . . Weapon 7 | 2 5 Energy Gun 5 | 1 4 Energy Cannon . | . . Ballistic Gun 2 | 1 1 Ballistic Cannon . | . . Launcher . | . . Special Weapon . | . . Impact Weapon . | . . Slashing Weapon . | . . Piercing Weapon . | . . Special Melee Weapon . | . . Unidentified Prototypes . | . . Parts Lost 9 | . 9 Power 1 | . 1 Propulsion 3 | . 3 Utility . | . . Weapon 5 | . 5 Highest Loss Streak 6 | . 6 Average Slot Usage (%) 54 | . 54 Engine 8 | . 8 Leg 13 | . 13 Wheel 6 | . 6 Device 3 | . 3 Energy Gun 13 | . 13 Ballistic Gun 8 | . 8 Naked Turns 18 | . 18 Heaviest Build 8 | 8 8 Greatest Support 20 | 20 20 Greatest Overweight (x) 1 | . 1 Average Overweight (x) . | . . Largest Inventory Capacity 4 | 4 4 Average Capacity 4 | 4 4 Most Carried 4 | 4 4 Average Carried 2 | 3 2 Final Capacity 4 | 4 4 Final Carried 4 | 4 . Class Distribution -------------------- 100% | Mutant Dominant Class ---------------- Mutant | -10/Materials Resources | -11 -10 ----------- Run | Scr Mat Matter Collected 343 | 259 84 Remotely . | . . Salvage Created 325 | 80 245 Parts 17 | 4 13 Haulers Intercepted . | . . Recyclers Shooed . | . . Parts Field Recycled . | . . Retrieved Matter . | . . Parts Self-Destructed . | . . Prevented . | . . Kills | -11 -10 ------- Run | Scr Mat Combat Hostiles Destroyed 7 | 1 6 Guns 7 | 1 6 Classes Destroyed 3 | 2 1 Worker 1 | 1 . Swarmer 2 | . 2 Grunt 5 | 1 4 Best Kill Streak 3 | 1 3 Combat Bots Only 3 | 1 3 Max Kills in Single Turn 1 | 1 1 Gunslinging . | . . Exploded . | . . Melee . | . . Uniques/NPCs Destroyed . | . . Combat | -11 -10 -------- Run | Scr Mat Damage Taken 874 | 33 841 Core 254 | 11 243 Absorbed by Shields . | . . Core Remaining (%) 95 | 95 . Volleys Fired 48 | 9 39 Largest 2 | 2 2 Hottest 80 | 60 80 Shots Fired 75 | 18 57 Gun 75 | 18 57 Cannon . | . . Launcher . | . . Special . | . . Kinetic 34 | 9 25 Thermal 7 | . 7 Explosive . | . . Electromagnetic 34 | 9 25 Robot Hit Streak 14 | 4 14 Robot Miss Streak 9 | 3 9 Penetration Max . | . . Secondary Targets 1 | . 1 Max Gunslinging Chain 1 | . 1 Shots Hit Robots 40 | 10 30 Core Hits 15 | 5 10 Critical Hits . | . . Critical Kills . | . . Critical Parts Destroyed . | . . Melee Attacks . | . . Impact . | . . Slashing . | . . Piercing . | . . Sneak Attacks . | . . Combat Hostiles . | . . Follow-up Attacks . | . . Damage Inflicted 410 | 119 291 Guns 410 | 119 291 Cannons . | . . Explosions . | . . Melee . | . . Ramming . | . . Kinetic 159 | 39 120 Thermal 31 | . 31 Explosive . | . . Electromagnetic 220 | 80 140 Impact . | . . Slashing . | . . Piercing . | . . Highest Corruption . | . . Average Corruption . | . . Corruption Purged . | . . Overload Shots . | . . Overflow Damage . | . . Projectiles . | . . Explosions . | . . Melee . | . . Knockbacks . | . . Impact . | . . Kinetic . | . . Secondary . | . . Self-Inflicted Damage . | . . Shots . | . . Rammed . | . . Targets Rammed . | . . Kicked . | . . Crushed . | . . Highest Temperature 74 | 26 74 Average Temperature 24 | 10 27 Received Heat Transfer 420 | 18 402 Siege Activations . | . . Robots Corrupted . | . . Combat Hostiles . | . . Parts Fried 1 | 1 . Impact Corruptions . | . . Robots Melted . | . . Combat Hostiles . | . . Parts Melted . | . . Heat Transferred 75 | . 75 Parts Sabotaged . | . . Parts Stolen . | . . Parts Stripped . | . . Power Chain Reactions . | . . Missiles Intercepted . | . . Alert | -11 -10 ------- Run | Scr Mat Peak Influence 126 | 25 126 Initial 16 | . 16 Average 59 | 9 84 Maximum Alert Level . | . . Low Security (%) 100 | 100 100 Level 1 . | . . Level 2 . | . . Level 3 . | . . Level 4 . | . . Level 5 . | . . High Security . | . . Max Security . | . . Squads Dispatched 2 | . 2 Investigation 1 | . 1 Extermination . | . . Reinforcement 1 | . 1 Assault . | . . Garrison . | . . Intercept . | . . Construction Impeded . | . . Haulers Reinforced . | . . Stealth | -11 -10 --------- Run | Scr Mat Distress Signals 1 | . 1 Communications Jammed . | . . Distress Signals . | . . Times Spotted 13 | 1 12 Peak Tracking Total 5 | 1 5 Tactical Retreats . | . . Traps | -11 -10 ------- Run | Scr Mat Traps Triggered . | . . Indirectly . | . . Trap Hack Attempts . | . . Triggered . | . . Disarmed . | . . Reprogrammed . | . . Reused . | . . Traps Extracted . | . . Installed . | . . Triggered . | . . Machines | -11 -10 ---------- Run | Scr Mat Machines Disabled 2 | . 2 Max in Single Turn 1 | . 1 Machines Sabotaged . | . . Garrisons Compromised . | . . Overloaded Fab Kills . | . . Fab Network Shutdowns . | . . Hacking | -11 -10 --------- Run | Scr Mat Machines Accessed 1 | . 1 Terminals . | . . Fabricators . | . . Repair Stations . | . . Recycling Units 1 | . 1 Scanalyzers . | . . Garrison Access . | . . Total Hacks 7 | . 7 Successful 4 | . 4 Failed 3 | . 3 Catastrophic . | . . Database Lockouts . | . . Manual . | . . Terminals . | . . Fabricators . | . . Repair Stations . | . . Recycling Units 7 | . 7 Scanalyzers . | . . Garrison Access . | . . Terminal Hacks . | . . Fabricator Hacks . | . . Repair Station Hacks . | . . Recycling Unit Hacks 4 | . 4 Process 1 | . 1 Report Inventory 1 | . 1 Retrieve Components 2 | . 2 Scanalyzer . | . . Garrison Access Hacks . | . . Unauthorized Hacks . | . . Terminals . | . . Fabricators . | . . Repair Stations . | . . Recycling Units . | . . Scanalyzers . | . . Garrison Access . | . . Data Cores Recovered . | . . Used . | . . Hacking Detections 1 | . 1 Full Trace Events 1 | . 1 Feedback Events . | . . Feedback Blocked . | . . Robot Schematics Acquired . | . . Robots Built . | . . Matter . | . . Time . | . . Total Robot Build Rating . | . . Part Schematics Acquired . | . . Parts Built . | . . Matter . | . . Time . | . . Total Part Build Rating . | . . Parts Repaired . | . . Time . | . . Parts Recycled . | . . Recycled Matter 79 | . 79 Retrieved Matter . | . . Retrieved Components . | . . Parts Scanalyzed . | . . Part Schematics Acquired . | . . Parts Damaged . | . . Bothacking | -11 -10 ------------ Run | Scr Mat Used RIF Installer . | . . Robots Hacked . | . . Non-combat . | . . Combat . | . . Robot Hacks Applied . | . . Relay Couplers Released . | . . Robots Rewired . | . . Allies Hacked . | . . Hacks Repelled . | . . Allies | -11 -10 -------- Run | Scr Mat Total Allies . | . . Largest Group . | . . Highest-Rated Group . | . . Highest-Rated Ally . | . . Total Orders . | . . Ally Attacks . | . . Total Damage . | . . Kills . | . . Allies Corrupted . | . . Allies Melted . | . . Intel | -11 -10 ------- Run | Scr Mat Robot Analysis Total . | . . Derelict Logs Recovered . | . . Drone Launches . | . . Drone Recoveries . | . . Exploration | -11 -10 ------------- Run | Scr Mat Turns Passed 492 | 164 328 Spaces Moved 302 | 114 188 Core 75 | 41 34 Treads . | . . Legs 176 | 73 103 Wheels 42 | . 42 Hover . | . . Flight 9 | . 9 Fastest Speed 50 | 50 50 Average Speed 97 | 94 99 Slowest Speed 130 | 120 130 Overloaded Moves . | . . Propulsion Burnouts . | . . Robots Hopped . | . . Cave-ins Triggered . | . . Exploration Rate (%) 13 | 9 18 Regions Visited 1 Branch Regions . Pre-discovered Areas . | . . Known Exits Taken . | . . Unknown Exits Taken 1 | 1 . Scrap Searched . | . . Spaces Dug . | . . Terrain Destroyed . | . . Melee . | . . Projectile . | . . AOE . | . . Terrain Rammed . | . . Walls Destroyed . | . . Machines Disabled . | . . Actions | -11 -10 --------- Run | Scr Mat Total 433 | 153 280 Wait 52 | 18 34 Move 301 | 113 188 Hop . | . . Pick Up 13 | 8 5 Fast Attach 1 | 1 . Attach 13 | 4 9 Detach 1 | . 1 Swap 1 | . 1 Drop 3 | . 3 Fire 48 | 9 39 Melee . | . . Ram . | . . Kick . | . . Crush . | . . Escape Stasis . | . . Rewire . | . . Trap . | . . Miscellaneous . | . . Route ------- -11/Scrapyard -10/Materials History --------- Turn | Location | Event 2 | -11/Scrapyard | Met Revision 17 92 | -11/Scrapyard | Discovered new exit (range 8) 165 | -11/Scrapyard | Entered Materials 307 | -10/Materials | Build established: Mutant 352 | -10/Materials | Core integrity fell below 50% 387 | -10/Materials | Lost 6 parts (1p2n3w) 446 | -10/Materials | Core integrity fell below 20% 493 | -10/Materials | Destroyed by G-34 Mercenary with Small Laser Last Messages --------------- 00348_ Acquired 10 matter. 00348_ R-06 Scavenger collects Ion Engine. 00349_ Acquired 1 matter. 00350_ Ion Engine destroyed. 00351_ R-06 Scavenger collects Aluminum Leg. 00352_ Acquired 1 matter. 00356_ Lgt. Assault Rifle destroyed. 00360_ K-01 Serf collects debris. 00371_ Acquired EM Pulse Gun. 00375_ K-01 Serf collects debris. 00380_ G-34 Mercenary destroyed. 00394_ Acquired 20 matter. 00396_ Acquired Heat Sink. 00400_ R-06 Scavenger collects Heat Sink. 00400_ Acquired Sml. Laser. 00403_ R-06 Scavenger collects Ion Engine. 00431_ W-16 Scout sends out distress signal. 00460_ Sml. Laser destroyed. 00490_ Hadron Collector disabled. 00493_ Aluminum Leg destroyed. Map ----- +----------------------------------------------------+ | ????????????????????#"" """"% #??????? | | ????????????????????#"Y """""% #??????? | | ????????????????????#"" """"" #??????? | | ????????????????????### """"" #??????? | | ??????????????????????# %""""" ###????? | | ??????????????????????# %% %"" #????? | | ??????????????????????# % #????? | | ??????????????????????# % #????? | | ????????????????????#####+####### #????? | | ????????????????????# % #?# #????? | | ????????????????????# ### #????? | | ????????????????????# + #????? | | ????????????????????# """ """ ### #????? | | ????????????????????# """ """ #?# #????? | | ????????????????????# """ """ #?# #????? | | ????????????????????# #?# #????? | | ????????????????????# #?# #????? | | ????????????????????###########?# #????? | | ??????????????????????########### #????? | | ??????????????????????# ! # #????? | | ??????????????????????# # #????? | | ??????????????????????# # #????? | | ??????????????????????# + #????? | | ??????????????????????# g # #????? | | ??????????????????????# g """ # #????? | | ??????????????????????# @"""" #####????? | | ??????????????????????# """" #????????? | | ??????????????????????###########????????? | | ?????????????????????????????????????????? | | ?????????????????????????????????????????? | | ?????????????????????????????????????????? | | ?????????????????????????????????????????? | | | | | | | | | | | | | | | | | | | | | | | | | | | | | | | | | | | | | +----------------------------------------------------+ Best States ------------- Heat Dissipation 35 Energy Generation 10 Energy Capacity 250 Matter Stores 300 Matter Capacity 300 Sight Range 16 Terrain Scan Density 10 Evasion (%) 50 Item Schematics ----------------- None Robot Schematics ------------------ None Fabricated ------------ Nothing Alien Tech Used ----------------- None Achievements -------------- None Challenges ------------ None Game ------ Seed UtilityMassScrap Manual? 0 Play Time 00:12:37 Cumulative 4.9 hours Start 2022.03.03 @ 14:00:20 End 2022.03.03 @ 14:12:43 Sessions 1 Manual Loads 0 Difficulty Rogue Special Mode None Game No. 2 Rogue 2 Adventurer 0 Explorer 0 Win Type - Total 0 Types 0/0/0/0/0/0/0/0/0 Lore% 1 Gallery% 5 Achievement% 6 Wizard Run 0 Options --------- ASCII 0 Keyboard 0 Movement Mouse Keybinds 0 Fullscreen 1 Font 24/Smallcaps Map View 76x50 Tactical HUD 1 Map Filters NONE Filters NONE Steam 1 RUN: 203e46f7-7f1d-46e1-9c39-84ce7f3106c0